bitfinex/quotes_SOLUSD_20260213
["timestamp","ask_amount","ask_price","bid_price","bid_amount"]
[1770964622075,12.79201598,78.174,78.151,0.54950057]
[1770964622577,44.76907532,78.179,78.151,0.54950057]
[1770964623703,12.79115875,78.179,78.151,0.54950057]
[1770964623890,4.32101762,78.17,78.151,0.54950057]
[1770964624391,44.76905562,78.179,78.151,0.54950057]
[1770964624895,12.79115875,78.179,78.151,0.54950057]
[1770964625096,43.08,78.178,78.151,0.54950057]
[1770964625903,0.1,78.2,78.152,0.54950057]
[1770964626205,12.78952282,78.189,78.161,0.54950057]
[1770964629394,44.76332987,78.189,78.161,0.54950057]
[1770964630295,43.16,78.188,78.161,0.54950057]
[1770964630899,43.16,78.188,78.162,0.54950057]
[1770964631598,43.18,78.188,78.162,0.54950057]
[1770964631795,0.1,78.19,78.171,0.54950057]
[1770964634507,0.1,78.2,78.181,0.54950057]
[1770964636290,4.42101762,78.2,78.181,0.54950057]
[1770964636489,4.42101762,78.2,78.171,0.54950057]
[1770964636902,0.1,78.2,78.171,0.54950057]
[1770964637497,0.12009068,78.2,78.171,0.54950057]
[1770964638512,0.02020668,78.199,78.171,0.54950057]
[1770964639009,0.02020668,78.198,78.171,0.54950057]
[1770964642390,12.78821438,78.197,78.171,0.54950057]
[1770964644007,0.1,78.2,78.181,0.54950057]
[1770964644895,0.02089161,78.199,78.171,0.54950057]
[1770964646609,0.02110662,78.198,78.171,0.54950057]
[1770964647403,12.78788731,78.199,78.171,0.54950057]
[1770964648211,0.1,78.2,78.181,0.54950057]
[1770964651110,0.1,78.21,78.191,0.54891511]
[1770964652505,0.1,78.21,78.2,4.32101762]
[1770964652814,12.78478099,78.218,78.208,0.54891511]
[1770964654536,0.1,78.22,78.208,0.54891511]
[1770964657311,0.1,78.22,78.201,0.51356649]
[1770964657624,0.32338478,78.22,78.201,0.51356649]
[1770964657914,0.22338478,78.219,78.201,0.51356649]
[1770964658517,0.1,78.22,78.201,0.51356649]
[1770964658723,0.1,78.22,78.211,0.51356649]
[1770964664911,0.1,78.22,78.21,4.31210598]
[1770964665822,0.1,78.22,78.206,0.51356649]
[1770964667038,0.32535419,78.22,78.201,0.51356649]
[1770964667210,0.1,78.22,78.201,0.51356649]
[1770964668313,0.22577333,78.209,78.176,0.51356649]
[1770964668507,0.22577333,78.199,78.176,0.51356649]
[1770964668907,4.31210598,78.21,78.163,0.51356649]
[1770964668908,0.22577333,78.189,78.163,0.51356649]
[1770964669125,4.31210598,78.19,78.163,0.51356649]
[1770964669431,13.0147523,78.193,78.163,0.51356649]
[1770964669725,4.31210598,78.19,78.163,0.51356649]
[1770964670723,0.22617571,78.189,78.163,0.51356649]
[1770964671226,4.31210598,78.19,78.164,0.51356649]
[1770964671422,12.78846245,78.196,78.164,0.51356649]
[1770964671631,0.22637867,78.195,78.164,0.51356649]
[1770964671821,4.31210598,78.19,78.164,0.51356649]
[1770964672419,12.78846245,78.196,78.166,0.51356649]
[1770964672617,4.31210598,78.19,78.166,0.51356649]
[1770964676930,4.31210598,78.19,78.168,0.51356649]
[1770964677316,12.78846245,78.196,78.168,0.51356649]
[1770964677516,13.01598902,78.196,78.168,0.51356649]
[1770964678539,4.31210598,78.19,78.17,0.51356649]
[1770964678829,0.2277116,78.189,78.17,0.51356649]
[1770964679034,4.31210598,78.19,78.17,0.51356649]
[1770964679535,12.78952282,78.189,78.17,0.51356649]
[1770964679836,0.22789449,78.189,78.17,0.51356649]
[1770964680638,0.22825377,78.194,78.172,0.51018142]
[1770964681121,4.31210598,78.19,78.172,0.51018142]
[1770964684131,0.22877879,78.189,78.172,0.51018142]
[1770964686335,0.22877879,78.189,78.121,38.48]
[1770964686336,0.22911266,78.179,78.152,0.51018142]
[1770964686528,4.54139557,78.17,78.152,0.51018142]
[1770964687135,4.54139557,78.18,78.152,0.51018142]
[1770964687336,4.31210598,78.18,78.152,0.51018142]
[1770964689423,12.79115875,78.179,78.152,0.51018142]
[1770964689738,13.01949418,78.185,78.154,0.51018142]
[1770964690040,4.31210598,78.18,78.154,0.51018142]
[1770964691137,4.31210598,78.18,78.155,12.79508668]
[1770964691343,12.79020459,78.185,78.156,0.51018142]
[1770964692638,13.01977208,78.189,78.157,12.79475926]
[1770964692842,0.23024926,78.188,78.158,0.51018142]
[1770964695227,4.31210598,78.18,78.16,0.51018142]
[1770964695842,4.31210598,78.19,78.16,0.51018142]
[1770964696146,4.31210598,78.19,78.161,0.51018142]
[1770964696943,31.96257989,78.217,78.181,0.51018142]
[1770964697447,31.96257989,78.217,78.182,0.51018142]
[1770964697448,17.09834718,78.21,78.182,0.51018142]
[1770964697650,0.23085721,78.219,78.182,0.51018142]
[1770964697828,0.23100289,78.217,78.182,0.51018142]
[1770964699733,12.7851079,78.216,78.184,0.51018142]
[1770964700753,12.7851079,78.216,78.173,54.84]
[1770964700754,0.23144935,78.209,78.186,0.51018142]
[1770964700934,0.23144935,78.219,78.186,0.51018142]
[1770964701142,4.31210598,78.21,78.186,0.51018142]
[1770964701454,12.88450111,78.22,78.173,54.84]
[1770964701455,0.23159929,78.199,78.181,0.51018142]
[1770964701647,4.31210598,78.2,78.181,0.51018142]
[1770964702054,0.23159929,78.204,78.181,0.51018142]
[1770964702349,4.31210598,78.2,78.181,0.51018142]
[1770964702646,0.23174748,78.199,78.181,0.51018142]
[1770964704052,4.31210598,78.2,78.181,0.51018142]
[1770964704253,4.31210598,78.19,78.174,0.51018142]
[1770964704843,17.09996774,78.2,78.174,0.51018142]
[1770964706862,12.78677826,78.206,78.175,0.51018142]
[1770964707236,13.01905607,78.206,78.175,0.51018142]
[1770964709033,13.01905607,78.206,78.177,0.51018142]
[1770964709952,0.23266644,78.205,78.178,12.79132236]
[1770964710133,0.23266644,78.205,78.179,0.51018142]
[1770964711646,4.31210598,78.2,78.179,0.51018142]
[1770964711844,4.54514105,78.2,78.179,0.51018142]
[1770964712045,0.23303507,78.199,78.179,0.51018142]
[1770964713559,0.23328074,78.204,78.181,0.53505589]
[1770964713775,4.31210598,78.2,78.181,0.53505589]
[1770964713952,4.54538672,78.2,78.181,0.53505589]
[1770964715557,4.31210598,78.2,78.181,0.53505589]
[1770964716058,12.78683142,78.206,78.17,4.31210598]
[1770964716059,0.23362657,78.208,78.183,0.55346114]
[1770964716259,17.09833142,78.21,78.183,0.55346114]
[1770964717865,0.23384886,78.209,78.183,0.55346114]
[1770964719569,13.02048306,78.208,78.184,0.55346114]
[1770964719864,0.23406735,78.207,78.184,0.55346114]
[1770964720165,12.78641571,78.208,78.184,0.55346114]
[1770964721147,13.02059264,78.208,78.184,0.55346114]
[1770964721368,0.23417693,78.207,78.184,0.55346114]
[1770964726866,13.02075613,78.207,78.184,0.55346114]
[1770964727351,4.31527179,78.21,78.186,0.55346114]
[1770964728077,0.23492977,78.209,78.186,0.55346114]
[1770964731669,0.23492977,78.209,78.187,12.78984997]
[1770964731981,0.23492977,78.209,78.188,0.55346114]
[1770964733356,0.23550503,78.219,78.188,0.55346114]
[1770964733774,0.23550503,78.218,78.188,0.55346114]
[1770964734082,0.23550503,78.209,78.19,0.55346114]
[1770964734383,0.23550503,78.209,78.18,0.55346114]
[1770964734557,0.23550503,78.209,78.181,0.55346114]
[1770964736385,0.23569631,78.207,78.181,0.55346114]
[1770964737464,0.23569631,78.207,78.183,0.55346114]
[1770964738375,13.02261828,78.206,78.183,0.55346114]
[1770964739277,0.23596577,78.205,78.183,0.55346114]
[1770964741774,0.23596577,78.205,78.185,0.5442257]
[1770964742766,0.23642229,78.209,78.185,0.5442257]
[1770964743072,0.23642229,78.208,78.185,0.5442257]
[1770964743881,0.23642229,78.208,78.172,4.61729252]
[1770964743882,0.23642229,78.208,78.187,0.5442257]
[1770964744080,0.2365074,78.207,78.187,0.5442257]
[1770964744377,0.2365074,78.199,78.179,0.5442257]
[1770964744573,12.7865011,78.208,78.162,0.5442257]
[1770964744574,0.23659305,78.189,78.162,0.5442257]
[1770964744959,0.23659305,78.179,78.157,0.5442257]
[1770964745159,4.31527179,78.17,78.151,0.5442257]
[1770964746274,4.31527179,78.16,78.142,0.5442257]
[1770964746460,0.23667969,78.159,78.142,0.5442257]
[1770964749378,0.23667969,78.159,78.143,12.79705155]
[1770964749684,0.2370332,78.164,78.144,0.5442257]
[1770964749988,4.31527179,78.16,78.144,0.5442257]
[1770964750976,13.02999693,78.169,78.144,0.5442257]
[1770964751298,4.31527179,78.18,78.151,0.5442257]
[1770964751658,0.23711385,78.186,78.153,0.5442257]
[1770964752166,12.78964778,78.189,78.161,0.5442257]
[1770964752373,17.10308102,78.2,78.171,0.5442257]
[1770964752569,0.23727059,78.199,78.162,0.5442257]
[1770964752781,4.31527179,78.19,78.162,0.5442257]
[1770964754286,4.31527179,78.19,78.163,12.7937771]
[1770964754474,4.31527179,78.19,78.164,0.5442257]
[1770964754993,0.23742258,78.189,78.164,0.5442257]
[1770964757085,0.23742258,78.189,78.166,0.5442257]
[1770964757287,4.31527179,78.19,78.166,0.5442257]
[1770964758388,4.55292247,78.19,78.166,0.5442257]
[1770964759068,4.31527179,78.19,78.168,0.5442257]
[1770964759574,0.23779336,78.189,78.168,0.5442257]
[1770964759990,0.23779336,78.195,78.168,0.5442257]
[1770964760487,4.31527179,78.19,78.168,0.5442257]
[1770964760986,0.23786539,78.189,78.168,0.5442257]
[1770964761692,0.23793223,78.187,78.162,0.5442257]
[1770964762273,0.23793223,78.187,78.163,0.5442257]
[1770964762474,4.31527179,78.19,78.163,0.5442257]
[1770964762689,12.78952282,78.189,78.163,0.5442257]
[1770964762992,0.23800172,78.195,78.163,0.5442257]
[1770964763684,12.78815544,78.198,78.165,0.5442257]
[1770964763885,12.78815544,78.198,78.171,0.5442257]
[1770964767387,12.78815544,78.198,78.172,0.5442257]
[1770964770074,13.02682876,78.196,78.172,0.5442257]
[1770964770271,4.31527179,78.19,78.172,0.5442257]
[1770964770506,4.31527179,78.19,78.167,12.79298332]
[1770964770507,0.23813041,78.189,78.168,0.56835618]
[1770964772497,0.23719843,78.187,78.161,67.89409408]
[1770964772691,0.23719843,78.187,78.162,0.56835618]
[1770964772994,4.31527179,78.19,78.162,0.56835618]
[1770964773296,13.02538816,78.198,78.162,0.56835618]
[1770964773697,0.23689289,78.197,78.162,0.56835618]
[1770964773996,4.31527179,78.2,78.171,0.56835618]
[1770964774188,4.55186336,78.2,78.171,0.56835618]
[1770964774396,12.78788731,78.199,78.171,0.56835618]
[1770964774771,0.23629381,78.198,78.172,0.52385033]
[1770964775894,0.23599864,78.189,78.168,0.52385033]
[1770964776298,4.31527179,78.18,78.16,12.79411788]
[1770964776893,4.31527179,78.18,78.153,0.56749962]
[1770964778378,12.79007266,78.186,78.153,0.56749962]
[1770964781323,12.79007266,78.186,78.155,0.56749962]
[1770964781593,12.79007266,78.186,78.161,0.56749962]
[1770964781998,12.78924909,78.191,78.171,0.56749962]
[1770964782576,4.31527179,78.19,78.161,0.56749962]
[1770964783301,12.78952282,78.189,78.161,0.56749962]
[1770964784605,12.78837792,78.196,78.161,0.56749962]
[1770964784904,12.78837792,78.196,78.163,0.56749962]
[1770964786803,4.31527179,78.19,78.163,0.56749962]
[1770964789003,12.78952282,78.189,78.163,0.56749962]
[1770964796999,12.7888838,78.193,78.165,0.56749962]
[1770964797310,4.31757625,78.18,78.143,0.56749962]
[1770964797494,4.31757625,78.16,78.121,0.56749962]
[1770964797705,4.31757625,78.16,78.077,51.23085698]
[1770964797706,4.31757625,78.14,78.11,0.56749962]
[1770964798004,4.31757625,78.13,78.105,0.56749962]
[1770964798888,4.31757625,78.12,78.105,0.56749962]
[1770964799108,4.31757625,78.13,78.1,0.76749962]
[1770964799298,4.31757625,78.13,78.101,0.56749962]
[1770964800222,12.79623278,78.148,78.102,0.56749962]
[1770964800419,4.31757625,78.14,78.111,0.56749962]
[1770964800620,4.31757625,78.13,78.1,5.08507587]
[1770964800818,4.31757625,78.13,78.1,0.76749962]
[1770964801014,12.79934467,78.129,78.101,0.56749962]
[1770964801207,12.79871044,78.133,78.11,4.31757625]
[1770964801408,4.31757625,78.14,78.111,0.56749962]
[1770964802527,12.79804631,78.137,78.111,0.56749962]
[1770964802727,12.79714737,78.143,78.113,0.56749962]
[1770964802914,4.31757625,78.14,78.113,0.56749962]
[1770964803507,4.31757625,78.14,78.102,0.56749962]
[1770964803817,4.31757625,78.14,78.111,0.56749962]
[1770964805132,4.31757625,78.15,78.112,0.56749962]
[1770964805334,12.79586645,78.151,78.121,0.56749962]
[1770964805627,4.31757625,78.15,78.121,0.56749962]
[1770964806208,12.79586645,78.151,78.112,0.56749962]
[1770964806209,4.31757625,78.14,78.112,0.56749962]
[1770964806829,44.02,78.149,78.112,0.56749962]
[1770964807330,12.79606904,78.149,78.112,0.56749962]
[1770964808315,12.79606904,78.149,78.114,0.56749962]
[1770964808516,12.79606904,78.149,78.121,0.56749962]
[1770964810228,12.79606904,78.149,78.122,0.56749962]
[1770964815438,17.11356727,78.15,78.123,0.56749962]
[1770964816020,49.10333054,78.15,78.105,0.56749962]
[1770964816342,49.10333054,78.15,78.111,0.56749962]
[1770964816637,4.31757625,78.14,78.111,0.56749962]
[1770964816930,4.31757625,78.14,78.106,0.56749962]
[1770964817137,4.31757625,78.14,78.111,0.56749962]
[1770964817325,12.79770665,78.139,78.111,0.56749962]
[1770964819140,56.95701058,78.144,78.113,0.56749962]
[1770964824950,31.98932605,78.152,78.1,0.2]
[1770964824951,44.77191905,78.174,78.13,4.31757625]
[1770964825240,4.31757625,78.16,78.131,0.56749962]
[1770964825437,4.31757625,78.15,78.131,0.56749962]
[1770964827040,12.7952504,78.154,78.131,0.56749962]
[1770964827431,44.26,78.157,78.131,0.56749962]
[1770964827637,55.46209749,78.21,78.151,0.56749962]
[1770964827943,44.26,78.177,78.151,0.56749962]
[1770964829247,31.97620381,78.184,78.151,0.56749962]
[1770964829248,12.79164961,78.176,78.151,0.56749962]
[1770964830248,44.26,78.178,78.161,0.56749962]
[1770964831359,44.28,78.185,78.161,0.56749962]
[1770964832429,12.79034073,78.184,78.161,0.56749962]
[1770964835146,12.78961548,78.189,78.161,0.56749962]
[1770964835354,44.34,78.188,78.171,0.56749962]
[1770964836647,44.34,78.188,78.163,0.56749962]
[1770964838967,44.34,78.188,78.171,0.56749962]
[1770964841383,12.78984997,78.187,78.171,0.56749962]
[1770964843942,44.34,78.188,78.171,0.56749962]
[1770964846473,44.34,78.188,78.173,0.56749962]
[1770964846681,57.30798698,78.199,78.173,0.56749962]
[1770964847257,44.52,78.199,78.175,0.56749962]
[1770964847670,12.78805084,78.198,78.175,0.56749962]
[1770964850180,12.78805084,78.198,78.181,0.56749962]
[1770964851383,4.31591174,78.21,78.181,0.56749962]
[1770964851581,44.58,78.209,78.183,0.56749962]
[1770964852582,12.78641571,78.208,78.183,0.56749962]
[1770964853579,31.95817558,78.228,78.191,0.56749962]
[1770964853785,12.78401656,78.223,78.201,0.56749962]
[1770964854087,0.1,78.23,78.211,0.53429155]
[1770964855178,0.09419689,78.229,78.211,0.53429155]
[1770964855690,0.09419689,78.229,78.206,0.53429155]
[1770964856488,0.09422539,78.219,78.191,0.53429155]
[1770964856789,0.09424898,78.218,78.191,0.53429155]
[1770964858670,0.09424898,78.218,78.192,0.53429155]
[1770964859071,0.09424898,78.218,78.186,0.53429155]
[1770964859271,0.09424898,78.218,78.19,4.85020329]
[1770964859473,0.09424898,78.218,78.191,0.53429155]
[1770964860078,0.09433085,78.209,78.179,0.53429155]
[1770964860289,0.09433085,78.207,78.179,0.53429155]
[1770964861495,12.7865792,78.207,78.179,0.53429155]
[1770964861680,0.09443143,78.206,78.179,0.53429155]
[1770964861879,0.09443143,78.199,78.161,0.54055916]
[1770964862386,4.31591174,78.17,78.139,0.54055916]
[1770964862694,0.09445866,78.169,78.141,0.54055916]
[1770964862887,44.66,78.178,78.151,0.54055916]
[1770964863078,4.4103704,78.19,78.161,0.54055916]
[1770964863276,44.75302721,78.207,78.161,0.54055916]
[1770964863277,44.66,78.193,78.161,0.54055916]
[1770964864092,12.78782698,78.2,78.181,0.54055916]
[1770964865293,12.78782698,78.2,78.15,4.31591174]
[1770964865294,4.31591174,78.19,78.166,0.54055916]
[1770964865494,0.09451345,78.189,78.166,0.54055916]
[1770964866477,0.09456695,78.195,78.166,0.54055916]
[1770964866699,0.09456695,78.189,78.166,0.54055916]
[1770964867192,12.88408977,78.189,78.166,0.54055916]
[1770964867695,0.09459178,78.188,78.166,0.54055916]
[1770964870499,0.09466263,78.179,78.151,0.54055916]
[1770964870675,0.09466263,78.185,78.151,0.54055916]
[1770964874993,0.09475384,78.159,78.131,0.54055916]
[1770964875196,0.09475384,78.168,78.132,0.54055916]
[1770964875521,0.09475384,78.167,78.134,0.54055916]
[1770964875802,4.31591174,78.16,78.134,0.54055916]
[1770964876496,31.97843543,78.178,78.133,12.79868941]
[1770964876497,0.09480172,78.184,78.151,0.54055916]
[1770964876798,31.9733856,78.191,78.151,0.54055916]
[1770964876799,12.79075171,78.182,78.151,0.54055916]
[1770964877602,12.79001355,78.186,78.161,0.54055916]
[1770964879411,4.31591174,78.18,78.161,0.54055916]
[1770964880009,44.78,78.187,78.161,0.54055916]
[1770964880213,57.56988415,78.187,78.161,0.54055916]
[1770964880406,57.66476424,78.187,78.161,0.54055916]
[1770964880706,57.56988415,78.187,78.161,0.54055916]
[1770964881002,4.31591174,78.18,78.161,0.54055916]
[1770964881504,12.79115875,78.179,78.161,0.54055916]
[1770964881710,12.79115875,78.179,78.156,0.54055916]
[1770964892403,57.63061899,78.183,78.158,0.53296782]
[1770964892824,12.78966083,78.189,78.161,0.53296782]
[1770964893118,51.13436168,78.226,78.171,0.53296782]
[1770964893119,45.0,78.194,78.171,0.53296782]
[1770964893296,45.0,78.198,78.171,0.53296782]
[1770964893502,0.0933319,78.197,78.171,0.53296782]
[1770964894421,45.0,78.196,78.171,0.53296782]
[1770964894605,45.0,78.196,78.173,0.53958893]
[1770964896212,12.78631598,78.209,78.181,0.53958893]
[1770964896418,45.02,78.204,78.181,0.53958893]
[1770964896618,45.02,78.204,78.18,4.31591174]
[1770964896619,45.02,78.204,78.183,0.53958893]
[1770964897206,12.78631598,78.209,78.183,0.53958893]
[1770964897920,0.0909046,78.219,78.191,0.53958893]
[1770964898115,12.87570786,78.218,78.191,0.53958893]
[1770964898535,45.04,78.219,78.191,0.53958893]
[1770964898903,57.82461754,78.219,78.192,12.78903212]
[1770964899103,57.82461754,78.219,78.193,0.53958893]
[1770964899317,12.78461754,78.219,78.193,0.53958893]
[1770964903821,0.08864323,78.218,78.193,0.53958893]
[1770964904128,0.08864323,78.217,78.193,0.53958893]
[1770964905322,0.08827827,78.214,78.193,0.53958893]
[1770964907325,12.78527136,78.215,78.193,0.53958893]
[1770964907511,45.16,78.214,78.193,0.53958893]
[1770964908209,12.78527136,78.215,78.193,0.53958893]
[1770964908414,45.18,78.223,78.201,0.53958893]
[1770964908811,12.78412722,78.222,78.201,0.53958893]
[1770964909116,0.08687926,78.219,78.194,12.78870501]
[1770964909314,0.53626588,78.217,78.18,4.31591174]
[1770964909519,0.53626588,78.209,78.18,4.31591174]
[1770964910633,0.53626588,78.208,78.181,12.79083153]
[1770964911238,0.53626588,78.208,78.182,0.53958893]
[1770964911417,45.73626588,78.208,78.182,0.53958893]
[1770964915729,45.26,78.211,78.184,0.53958893]
[1770964916821,45.26,78.211,78.186,0.53958893]
[1770964917024,45.26,78.211,78.191,0.53958893]
[1770964918126,0.53626588,78.219,78.191,0.53958893]
[1770964918544,0.53626588,78.219,78.201,0.53958893]
[1770964918729,12.7843198,78.221,78.201,0.53958893]
[1770964919225,0.1,78.23,78.192,12.78903212]
[1770964919226,12.88283586,78.23,78.211,0.53958893]
[1770964919528,45.83626588,78.229,78.211,0.53958893]
[1770964919728,0.53626588,78.228,78.211,0.53958893]
[1770964920044,0.53626588,78.228,78.2,4.31488387]
[1770964920045,0.53626588,78.228,78.201,0.53958893]
[1770964920948,0.53626588,78.228,78.201,13.32711146]
[1770964921441,0.54133709,78.226,78.196,0.51701641]
[1770964921647,0.54133709,78.219,78.181,0.51701641]
[1770964922440,0.54133709,78.217,78.181,0.51701641]
[1770964923238,0.54133709,78.215,78.191,0.51701641]
[1770964923443,45.34,78.214,78.191,0.51701641]
[1770964924221,0.54133709,78.22,78.191,0.51701641]
[1770964924435,45.36,78.215,78.201,0.51701641]
[1770964924946,0.54133709,78.214,78.191,0.51701641]
[1770964925246,45.36,78.215,78.201,0.51701641]
[1770964928233,12.78543483,78.214,78.201,0.51701641]
[1770964928550,0.54133709,78.213,78.191,0.51701641]
[1770964928735,0.54133709,78.213,78.183,0.51701641]
[1770964929850,0.54133709,78.211,78.183,0.51701641]
[1770964930046,0.54133709,78.209,78.183,0.51701641]
[1770964933351,0.54133709,78.208,78.183,0.51701641]
[1770964934752,0.54133709,78.208,78.184,12.79034073]
[1770964934955,0.54133709,78.208,78.185,0.51701641]
[1770964936358,45.42,78.21,78.191,0.51701641]
[1770964936563,45.52,78.209,78.201,0.51701641]
[1770964937737,44.3963501,78.209,78.2,4.31488387]
[1770964938059,44.93768719,78.209,78.19,4.31488387]
[1770964938251,44.93768719,78.209,78.191,0.49546057]
[1770964939240,0.54133709,78.209,78.191,0.49546057]
[1770964939463,0.54133709,78.214,78.191,0.49546057]
[1770964939772,0.54133709,78.214,78.192,0.49727813]
[1770964940566,0.54133709,78.214,78.193,12.78886856]
[1770964940771,0.54133709,78.214,78.194,0.49817597]
[1770964941065,45.56,78.215,78.19,4.31488387]
[1770964941066,0.54133709,78.212,78.19,4.31488387]
[1770964941246,0.54133709,78.212,78.183,12.79050432]
[1770964941868,0.54133709,78.209,78.182,0.49817597]
[1770964942070,0.54133709,78.209,78.182,13.28877742]
[1770964942244,45.6,78.208,78.182,13.28877742]
[1770964942439,0.54133709,78.207,78.19,4.31488387]
[1770964942643,46.14133709,78.208,78.191,0.49992386]
[1770964943070,0.54133709,78.214,78.193,0.49992386]
[1770964943342,46.14133709,78.213,78.193,0.49992386]
[1770964943664,0.54133709,78.212,78.193,0.49992386]
[1770964945467,0.54133709,78.212,78.195,0.50246475]
[1770964946346,46.18133709,78.214,78.195,0.50246475]
[1770964946547,0.54133709,78.213,78.195,0.50246475]
[1770964946755,0.54133709,78.213,78.194,12.78870501]
[1770964946962,0.54133709,78.211,78.183,0.50329374]
[1770964947170,4.31488387,78.21,78.183,0.50329374]
[1770964947465,0.54133709,78.208,78.183,0.50329374]
[1770964954269,0.54133709,78.208,78.185,0.51037074]
[1770964955671,0.51457345,78.206,78.185,0.51037074]
[1770964956172,0.51457345,78.206,78.187,0.51184092]
[1770964961985,0.51457345,78.199,78.162,0.51604039]
[1770964962159,0.51457345,78.189,78.16,4.31488387]
[1770964963379,0.51457345,78.187,78.161,12.79410447]
[1770964968453,0.51457345,78.179,78.149,12.79606904]
[1770964968657,0.51457345,78.179,78.151,0.52061529]
[1770964970385,0.51457345,78.187,78.163,0.52124042]
[1770964972362,0.51457345,78.187,78.165,0.52246847]
[1770964974684,46.02,78.191,78.171,0.52426278]
[1770964974859,46.53457345,78.191,78.172,0.52426278]
[1770964975059,0.51457345,78.19,78.172,0.52426278]
[1770964976377,0.51457345,78.19,78.171,12.79246779]
[1770964976880,0.51457345,78.188,78.163,12.79365929]
[1770964978378,0.51457345,78.179,78.153,12.79527847]
[1770964978688,0.51457345,78.177,78.153,12.79527847]
[1770964979776,0.51457345,78.169,78.14,4.31741941]
[1770964980285,46.08,78.168,78.14,4.31741941]
[1770964980491,0.51457345,78.167,78.14,17.11487119]
[1770964980985,0.54306658,78.166,78.14,17.11487119]
[1770964981685,0.54306658,78.166,78.14,12.79745178]
[1770964982467,0.54306658,78.166,78.135,0.52874581]
[1770964982766,0.54306658,78.166,78.14,4.31741941]
[1770964983381,0.54306658,78.166,78.141,12.79737909]
[1770964983783,0.54306658,78.166,78.142,0.52979873]
[1770964985373,0.54306658,78.173,78.151,0.53031209]
[1770964985568,12.79101369,78.18,78.161,0.55049941]
[1770964986580,12.79001355,78.186,78.161,0.55049941]
[1770964987480,0.54306658,78.185,78.161,0.55049941]
[1770964988397,46.16,78.187,78.171,0.55049941]
[1770964988576,46.70306658,78.187,78.171,0.55049941]
[1770964988899,0.54306658,78.186,78.17,4.31741941]
[1770964989090,0.54306658,78.186,78.166,0.55049941]
[1770964989591,0.54306658,78.186,78.16,4.31741941]
[1770964989795,0.54306658,78.186,78.161,12.79410447]
[1770964990197,0.54306658,78.179,78.15,4.31741941]
[1770964991200,0.54306658,78.179,78.15,12.79578272]
[1770964992384,0.54306658,78.179,78.15,0.55049941]
[1770964993496,0.54306658,78.179,78.151,12.79574157]
[1770964996496,0.54306658,78.179,78.151,13.34624098]
[1770964996685,0.54306658,78.179,78.151,12.79574157]
[1770964996887,0.54306658,78.179,78.152,0.55049941]
[1770964999705,12.79132236,78.178,78.152,0.55049941]
[1770964999909,0.54306658,78.177,78.152,0.55049941]
[1770965000408,0.54306658,78.177,78.153,12.79541412]
[1770965000906,0.54306658,78.177,78.15,0.55049941]
[1770965001089,0.54306658,78.177,78.149,12.79605012]
[1770965001823,0.54306658,78.169,78.145,0.55049941]
[1770965002003,4.31741941,78.17,78.145,0.55049941]
[1770965002004,0.54306658,78.167,78.145,0.55049941]
[1770965002603,0.54306658,78.167,78.151,0.55049941]
[1770965002915,46.32,78.168,78.151,0.55049941]
[1770965003296,46.34,78.176,78.151,0.55049941]
[1770965003497,46.88306658,78.176,78.151,0.55049941]
[1770965003698,0.54306658,78.175,78.151,0.55049941]
[1770965004912,0.54306658,78.175,78.153,0.55049941]
[1770965005921,0.54306658,78.175,78.154,12.7952504]
[1770965006109,0.54306658,78.175,78.155,0.55049941]
[1770965009518,0.54306658,78.175,78.157,0.55049941]
[1770965010011,46.34,78.176,78.161,0.55049941]
[1770965011109,31.97280721,78.192,78.161,0.55049941]
[1770965011110,0.57198798,78.199,78.161,0.55049941]
[1770965011317,0.57198798,78.209,78.191,0.5810072]
[1770965013524,0.57198798,78.223,78.193,0.5810072]
[1770965013702,0.57198798,78.222,78.201,0.5810072]
[1770965016529,0.55837461,78.22,78.201,0.5810072]
[1770965017434,0.55837461,78.219,78.201,0.5810072]
[1770965017609,0.55837461,78.217,78.192,0.57104231]
[1770965021223,0.55837461,78.217,78.194,0.57104231]
[1770965024536,4.41741941,78.23,78.208,0.57104231]
[1770965024537,0.55837461,78.227,78.208,0.57104231]
[1770965025237,0.55837461,78.227,78.2,4.31741941]
[1770965025238,0.55837461,78.227,78.202,0.57104231]
[1770965025417,0.55837461,78.225,78.202,0.57104231]
[1770965026408,0.55837461,78.225,78.186,31.97502344]
[1770965026409,0.55837461,78.225,78.198,0.57104231]
[1770965026615,12.78373007,78.225,78.201,0.57104231]
[1770965026827,0.55837461,78.223,78.201,0.57104231]
[1770965031618,0.55837461,78.221,78.201,0.57104231]
[1770965032518,12.7844541,78.22,78.201,0.57104231]
[1770965032724,0.55837461,78.219,78.201,0.57104231]
[1770965032935,0.55837461,78.219,78.196,0.57104231]
[1770965034146,0.55837461,78.217,78.196,0.57104231]
[1770965035251,0.55837461,78.217,78.201,0.57104231]
[1770965041733,0.55456859,78.216,78.201,0.57104231]
[1770965042952,0.55456859,78.216,78.191,0.55188492]
[1770965043354,0.55456859,78.216,78.191,13.3410806]
[1770965043546,0.55456859,78.216,78.192,0.55188492]
[1770965043854,46.86,78.217,78.186,0.55188492]
[1770965043855,0.55456859,78.214,78.186,0.55188492]
[1770965044039,0.55456859,78.214,78.191,0.55188492]